fUSD/lending_fUSD_20250611
["ID","MTS","AMOUNT","RATE_DAILY","PERIOD"]
[365340833,1749609042877,-444.99506999,0.00016438,2]
[365340835,1749609042886,-490.0,0.00016438,2]
[365340837,1749609042895,-340.0,0.00016438,2]
[365340839,1749609042905,-572.79072913,0.00016438,2]
[365340841,1749609042915,-490.0,0.00016438,2]
[365340843,1749609042924,-490.0,0.00016438,2]
[365340845,1749609042934,-490.0,0.00016438,2]
[365340847,1749609042945,-490.0,0.00016438,2]
[365340849,1749609042960,-490.0,0.00016438,2]
[365340851,1749609042970,-490.0,0.00016438,2]
[365340854,1749609042980,-247.63571134,0.00016438,2]
[365340857,1749609042990,-466.15913736,0.00016438,2]
[365340860,1749609042999,-214.85018772,0.00016438,2]
[365340863,1749609043010,-527.72705282,0.00016438,2]
[365340865,1749609043019,-490.0,0.00016438,2]
[365340867,1749609043029,-490.0,0.00016438,2]
[365340869,1749609043039,-490.0,0.00016438,2]
[365340871,1749609043048,-514.75956153,0.00016438,2]
[365340873,1749609043058,-490.0,0.00016438,2]
[365340875,1749609043067,-337.96167076,0.00016438,2]
[365340877,1749609043077,-490.0,0.00016438,2]
[365340879,1749609043087,-490.0,0.00016438,2]
[365340881,1749609043099,-490.0,0.00016438,2]
[365340883,1749609043108,-490.0,0.00016438,2]
[365340885,1749609043118,-490.0,0.00016438,2]
[365340887,1749609043127,-490.0,0.00016438,2]
[365340889,1749609043137,-490.0,0.00016438,2]
[365340891,1749609043146,-283.56000875,0.00016438,2]
[365340893,1749609043155,-490.0,0.00016438,2]
[365340895,1749609043166,-490.0,0.00016438,2]
[365340897,1749609043177,-490.0,0.00016438,2]
[365340899,1749609043186,-426.42337185,0.00016438,2]
[365340900,1749609043195,-490.0,0.00016438,2]
[365340903,1749609043205,-347.72963139,0.00016438,2]
[365340905,1749609043214,-230.38407061,0.00016438,2]
[365340906,1749609043223,-490.0,0.00016438,2]
[365340908,1749609043234,-490.0,0.00016438,2]
[365340910,1749609043247,-490.0,0.00016438,2]
[365340913,1749609043257,-607.9714014,0.00016438,2]
[365340936,1749609043463,-490.0,0.00016438,2]
[365340938,1749609043474,-490.0,0.00016438,2]
[365340940,1749609043484,-490.0,0.00016438,2]
[365340942,1749609043494,-490.0,0.00016438,2]
[365340944,1749609043503,-490.0,0.00016438,2]
[365340946,1749609043513,-490.0,0.00016438,2]
[365340948,1749609043522,-499.02550584,0.00016438,2]
[365340950,1749609043532,-490.0,0.00016438,2]
[365340952,1749609043542,-490.0,0.00016438,2]
[365340955,1749609043552,-272.96579263,0.00016438,2]
[365340956,1749609043561,-490.0,0.00016438,2]
[365340959,1749609043570,-468.28031619,0.00016438,2]
[365340960,1749609043580,-463.62646479,0.00016438,2]
[365340963,1749609043590,-490.0,0.00016438,2]
[365340965,1749609043599,-501.12276461,0.00016438,2]
[365340966,1749609043609,-490.0,0.00016438,2]
[365340968,1749609043618,-480.0,0.00016438,2]
[365340970,1749609043628,-490.0,0.00016438,2]
[365340972,1749609043638,-526.49172599,0.00016438,2]
[365340974,1749609043647,-490.0,0.00016438,2]
[365340977,1749609043657,-639.82422759,0.00016438,2]
[365340979,1749609043665,-490.0,0.00016438,2]
[365340980,1749609043675,-490.0,0.00016438,2]
[365340982,1749609043684,-460.75963997,0.00016438,2]
[365340984,1749609043693,-490.0,0.00016438,2]
[365340986,1749609043702,-490.0,0.00016438,2]
[365340988,1749609043712,-490.0,0.00016438,2]
[365340990,1749609043721,-480.0,0.00016438,2]
[365340992,1749609043731,-490.0,0.00016438,2]
[365340994,1749609043740,-480.0,0.00016438,2]
[365340996,1749609043750,-490.0,0.00016438,2]
[365340998,1749609043759,-490.0,0.00016438,2]
[365341000,1749609043768,-490.0,0.00016438,2]
[365341002,1749609043778,-490.0,0.00016438,2]
[365341004,1749609043788,-490.0,0.00016438,2]
[365341006,1749609043797,-490.0,0.00016438,2]
[365341008,1749609043807,-490.0,0.00016438,2]
[365341010,1749609043816,-490.0,0.00016438,2]
[365341012,1749609043826,-490.0,0.00016438,2]
[365341014,1749609043835,-490.0,0.00016438,2]
[365341016,1749609043844,-490.0,0.00016438,2]
[365341018,1749609043853,-490.0,0.00016438,2]
[365341020,1749609043862,-579.77493864,0.00016438,2]
[365341022,1749609043871,-643.14,0.00016438,2]
[365341024,1749609043880,-490.0,0.00016438,2]
[365341026,1749609043890,-490.0,0.00016438,2]
[365341028,1749609043899,-490.0,0.00016438,2]
[365341030,1749609043908,-591.16577332,0.00016438,2]
[365341032,1749609043917,-490.0,0.00016438,2]
[365341034,1749609043927,-490.0,0.00016438,2]
[365341036,1749609043936,-490.0,0.00016438,2]
[365341038,1749609043945,-490.0,0.00016438,2]
[365341040,1749609043954,-490.0,0.00016438,2]
[365341042,1749609043964,-480.0,0.00016438,2]
[365341044,1749609043973,-464.51124787,0.00016438,2]
[365341046,1749609043982,-470.63507001,0.00016438,2]
[365341048,1749609043992,-490.0,0.00016438,2]
[365341050,1749609044002,-490.0,0.00016438,2]
[365341052,1749609044011,-492.49755998,0.00016438,2]
[365341054,1749609044021,-490.0,0.00016438,2]
[365341056,1749609044031,-349.32992307,0.00016438,2]
[365341058,1749609044040,-184.74369521,0.00016438,2]
[365341060,1749609044050,-490.0,0.00016438,2]
[365341062,1749609044059,-490.0,0.00016438,2]
[365341064,1749609044069,-490.0,0.00016438,2]
[365341066,1749609044078,-464.04149463,0.00016438,2]
[365341068,1749609044088,-559.69313686,0.00016438,2]
[365341070,1749609044100,-490.0,0.00016438,2]
[365341072,1749609044109,-495.10921381,0.00016438,2]
[365341074,1749609044119,-490.0,0.00016438,2]
[365341077,1749609044131,-490.0,0.00016438,2]
[365341078,1749609044141,-490.0,0.00016438,2]
[365341080,1749609044151,-490.0,0.00016438,2]
[365341082,1749609044161,-490.0,0.00016438,2]
[365341085,1749609044172,-490.0,0.00016438,2]
[365341087,1749609044181,-490.0,0.00016438,2]
[365341088,1749609044191,-519.85786617,0.00016438,2]
[365341090,1749609044200,-390.59523859,0.00016438,2]
[365341092,1749609044210,-490.0,0.00016438,2]
[365341094,1749609044219,-465.09321351,0.00016438,2]
[365341096,1749609044231,-490.0,0.00016438,2]
[365341098,1749609044240,-385.17480033,0.00016438,2]
[365341100,1749609044250,-476.29246282,0.00016438,2]
[365341103,1749609044260,-468.3517578,0.00016438,2]
[365341105,1749609044270,-477.10527253,0.00016438,2]
[365341107,1749609044280,-490.0,0.00016438,2]
[365341109,1749609044290,-603.80765424,0.00016438,2]
[365341111,1749609044300,-490.0,0.00016438,2]
[365341113,1749609044309,-490.0,0.00016438,2]
[365341115,1749609044319,-225.51040079,0.00016438,2]
[365341117,1749609044328,-490.0,0.00016438,2]
[365341119,1749609044338,-490.0,0.00016438,2]
[365341121,1749609044347,-490.0,0.00016438,2]
[365341123,1749609044357,-490.0,0.00016438,2]
[365341125,1749609044366,-787.65,0.00016438,2]
[365341127,1749609044375,-490.0,0.00016438,2]
[365341129,1749609044385,-412.46433802,0.00016438,2]
[365341131,1749609044395,-388.66566402,0.00016438,2]
[365341133,1749609044404,-490.0,0.00016438,2]
[365341135,1749609044413,-490.0,0.00016438,2]
[365341137,1749609044423,-470.88318327,0.00016438,2]
[365341139,1749609044432,-490.0,0.00016438,2]
[365341141,1749609044441,-551.10652112,0.00016438,2]
[365341143,1749609044451,-490.0,0.00016438,2]
[365341145,1749609044460,-476.09835465,0.00016438,2]
[365341146,1749609044469,-490.0,0.00016438,2]
[365341148,1749609044482,-490.0,0.00016438,2]
[365341150,1749609044492,-628.08823994,0.00016438,2]
[365341152,1749609044502,-490.0,0.00016438,2]
[365341154,1749609044511,-630.49093483,0.00016438,2]
[365341156,1749609044521,-490.0,0.00016438,2]
[365341158,1749609044531,-490.0,0.00016438,2]
[365341161,1749609044541,-490.0,0.00016438,2]
[365341163,1749609044551,-1110.23633006,0.00016438,2]
[365341165,1749609044560,-582.0215956,0.00016438,2]
[365341166,1749609044570,-490.0,0.00016438,2]
[365341169,1749609044580,-490.0,0.00016438,2]
[365341170,1749609044590,-490.0,0.00016438,2]
[365341172,1749609044600,-350.18812598,0.00016438,2]
[365341174,1749609044610,-490.0,0.00016438,2]
[365341177,1749609044620,-490.0,0.00016438,2]
[365341179,1749609044629,-217.06212671,0.00016438,2]
[365341180,1749609044639,-464.72632783,0.00016438,2]
[365341182,1749609044648,-490.0,0.00016438,2]
[365341184,1749609044658,-425.81168118,0.00016438,2]
[365341186,1749609044667,-490.0,0.00016438,2]
[365341188,1749609044676,-490.0,0.00016438,2]
[365341190,1749609044685,-304.99169968,0.00016438,2]
[365341192,1749609044695,-490.0,0.00016438,2]
[365341194,1749609044704,-423.87374829,0.00016438,2]
[365341196,1749609044714,-490.0,0.00016438,2]
[365341198,1749609044728,-466.41914402,0.00016438,2]
[365341200,1749609044738,-490.0,0.00016438,2]
[365341202,1749609044747,-490.0,0.00016438,2]
[365341204,1749609044757,-436.95284523,0.00016438,2]
[365341206,1749609044767,-490.0,0.00016438,2]
[365341208,1749609044776,-471.18464521,0.00016438,2]
[365341210,1749609044786,-236.0,0.00016438,2]
[365341212,1749609044795,-466.41987935,0.00016438,2]
[365341214,1749609044804,-490.0,0.00016438,2]
[365341216,1749609044813,-360.79192933,0.00016438,2]
[365341218,1749609044823,-490.0,0.00016438,2]
[365341220,1749609044832,-490.0,0.00016438,2]
[365341222,1749609044841,-490.0,0.00016438,2]
[365341224,1749609044850,-585.99461287,0.00016438,2]
[365341226,1749609044859,-490.0,0.00016438,2]
[365341228,1749609044868,-490.0,0.00016438,2]
[365341230,1749609044877,-221.27294887,0.00016438,2]
[365341232,1749609044886,-490.0,0.00016438,2]
[365341234,1749609044895,-490.0,0.00016438,2]
[365341236,1749609044905,-490.0,0.00016438,2]
[365341238,1749609044914,-425.16505913,0.00016438,2]
[365341240,1749609044923,-490.0,0.00016438,2]
[365341242,1749609044933,-490.0,0.00016438,2]
[365341244,1749609044942,-490.0,0.00016438,2]
[365341245,1749609044951,-471.92902949,0.00016438,2]
[365341247,1749609044961,-443.42435715,0.00016438,2]
[365341249,1749609044970,-468.74397514,0.00016438,2]
[365341251,1749609044980,-490.0,0.00016438,2]
[365341253,1749609044990,-490.9527932,0.00016438,2]
[365341255,1749609044999,-463.39251378,0.00016438,2]
[365341257,1749609045009,-490.0,0.00016438,2]
[365341259,1749609045018,-490.0,0.00016438,2]
[365341261,1749609045027,-378.36320175,0.00016438,2]
[365341263,1749609045037,-471.84984399,0.00016438,2]
[365341264,1749609045046,-490.0,0.00016438,2]
[365341265,1749609045055,-464.41080949,0.00016438,2]
[365341266,1749609045064,-490.0,0.00016438,2]
[365341267,1749609045073,-467.95632917,0.00016438,2]
[365341268,1749609045082,-490.0,0.00016438,2]
[365341269,1749609045091,-495.57497763,0.00016438,2]
[365341270,1749609045103,-490.0,0.00016438,2]
[365341271,1749609045112,-490.0,0.00016438,2]
[365341272,1749609045120,-490.0,0.00016438,2]
[365341273,1749609045129,-524.96593362,0.00016438,2]
[365341275,1749609045139,-490.0,0.00016438,2]
[365341277,1749609045147,-490.0,0.00016438,2]
[365341278,1749609045156,-467.13449346,0.00016438,2]
[365341280,1749609045165,-506.22797589,0.00016438,2]
[365341282,1749609045174,-490.0,0.00016438,2]
[365341284,1749609045183,-490.0,0.00016438,2]
[365341286,1749609045193,-490.0,0.00016438,2]
[365341288,1749609045202,-153.94,0.00016602,2]
[365341290,1749609045211,-533.07,0.00016602,2]
[365341292,1749609045222,-629.53,0.00016602,2]
[365341294,1749609045231,-490.0,0.00016602,2]
[365341296,1749609045240,-434.15400352,0.00016602,2]
[365341298,1749609045249,-470.0,0.00016602,2]
[365341300,1749609045258,-277.70059344,0.00016602,2]
[365341302,1749609045268,-433.11056707,0.00016602,2]
[365341304,1749609045277,-470.0,0.00016602,2]
[365341306,1749609045286,-430.0,0.00016602,2]
[365341308,1749609045295,-520.0,0.00016602,2]
[365341310,1749609045305,-470.0,0.00016602,2]
[365341312,1749609045314,-438.59035299,0.00016602,2]
[365341314,1749609045323,-470.0,0.00016602,2]
[365341316,1749609045332,-470.0,0.00016602,2]
[365341318,1749609045342,-470.0,0.00016602,2]
[365341320,1749609045350,-447.75932212,0.00016602,2]
[365341322,1749609045361,-477.78398705,0.00016602,2]
[365341325,1749609045371,-470.0,0.00016602,2]
[365341327,1749609045381,-470.0,0.00016602,2]
[365341329,1749609045390,-470.0,0.00016602,2]
[365341330,1749609045399,-470.0,0.00016602,2]
[365341332,1749609045408,-470.0,0.00016602,2]
[365341334,1749609045417,-237.95106519,0.00016602,2]
[365341336,1749609045427,-470.0,0.00016602,2]
[365341338,1749609045436,-470.0,0.00016602,2]
[365341340,1749609045446,-470.0,0.00016602,2]
[365341342,1749609045455,-470.0,0.00016602,2]
[365341344,1749609045465,-470.0,0.00016602,2]
[365341347,1749609045475,-490.0,0.00016602,2]
[365341349,1749609045484,-470.0,0.00016602,2]
[365341351,1749609045494,-470.0,0.00016602,2]
[365341353,1749609045506,-470.0,0.00016602,2]
[365341355,1749609045517,-482.96697229,0.00016602,2]
[365341357,1749609045530,-470.0,0.00016602,2]
[365341360,1749609045542,-470.0,0.00016602,2]
[365341362,1749609045554,-490.0,0.00016602,2]
[365341363,1749609045565,-470.0,0.00016602,2]
[365341364,1749609045576,-164.45737311,0.00016602,2]
[365341365,1749609045587,-490.0,0.00016602,2]
[365341366,1749609045599,-470.0,0.00016602,2]
[365341367,1749609045610,-631.16,0.00016602,2]
[365341368,1749609045622,-490.0,0.00016602,2]
[365341369,1749609045634,-458.86161129,0.00016602,2]
[365341370,1749609045646,-470.0,0.00016602,2]
[365341371,1749609045658,-525.55200134,0.00016602,2]
[365341372,1749609045670,-470.0,0.00016602,2]
[365341373,1749609045683,-470.0,0.00016602,2]
[365341374,1749609045695,-505.25380003,0.00016602,2]
[365341375,1749609045706,-470.0,0.00016602,2]
[365341376,1749609045718,-491.61202995,0.00016602,2]
[365341377,1749609045730,-299.34,0.00016602,2]
[365341380,1749609045741,-470.0,0.00016602,2]
[365341382,1749609045751,-490.0,0.00016602,2]
[365341384,1749609045761,-490.0,0.00016602,2]
[365341386,1749609045773,-408.38258395,0.00016602,2]
[365341387,1749609045785,-490.0,0.00016602,2]
[365341388,1749609045797,-490.0,0.00016602,2]
[365341389,1749609045808,-490.0,0.00016602,2]
[365341391,1749609045820,-490.0,0.00016602,2]
[365341393,1749609045832,-470.0,0.00016602,2]
[365341394,1749609045843,-470.0,0.00016602,2]
[365341397,1749609045856,-490.0,0.00016602,2]
[365341398,1749609045867,-504.89016122,0.00016602,2]
[365341399,1749609045879,-470.0,0.00016602,2]
[365341400,1749609045891,-300.0,0.00016602,2]
[365341401,1749609045906,-503.50171159,0.00016602,2]
[365341402,1749609045918,-442.01415912,0.00016602,2]
[365341403,1749609045931,-490.0,0.00016602,2]
[365341405,1749609045942,-490.0,0.00016602,2]
[365341407,1749609045953,-470.0,0.00016602,2]
[365341410,1749609045965,-470.0,0.00016602,2]
[365341412,1749609045977,-505.08285022,0.00016602,2]
[365341413,1749609045988,-576.34121948,0.00016602,2]
[365341414,1749609045999,-470.0,0.00016602,2]
[365341415,1749609046011,-496.93458103,0.00016602,2]
[365341416,1749609046021,-597.99272224,0.00016602,2]
[365341417,1749609046033,-470.0,0.00016602,2]
[365341418,1749609046044,-377.22040543,0.00016602,2]
[365341419,1749609046056,-487.81483557,0.00016602,2]
[365341420,1749609046069,-470.0,0.00016602,2]
[365341421,1749609046081,-177.45,0.00016602,2]
[365341422,1749609046092,-470.0,0.00016602,2]
[365341423,1749609046107,-447.91944084,0.00016602,2]
[365341424,1749609046117,-484.44353419,0.00016602,2]
[365341425,1749609046128,-490.0,0.00016602,2]
[365341426,1749609046138,-512.50232703,0.00016602,2]
[365341427,1749609046149,-490.0,0.00016602,2]
[365341428,1749609046159,-153.72,0.00016602,2]
[365341429,1749609046172,-470.0,0.00016602,2]
[365341430,1749609046185,-490.0,0.00016602,2]
[365341431,1749609046198,-490.0,0.00016602,2]
[365341432,1749609046208,-459.80358356,0.00016602,2]
[365341433,1749609046218,-470.0,0.00016602,2]
[365341434,1749609046230,-516.7874888,0.00016602,2]
[365341435,1749609046240,-421.44299063,0.00016602,2]
[365341436,1749609046250,-470.0,0.00016602,2]
[365341437,1749609046260,-470.0,0.00016602,2]
[365341438,1749609046272,-515.13538321,0.00016602,2]
[365341439,1749609046282,-470.0,0.00016602,2]
[365341440,1749609046294,-479.09515624,0.00016602,2]
[365341441,1749609046305,-470.0,0.00016602,2]
[365341442,1749609046316,-470.0,0.00016602,2]
[365341443,1749609046326,-549.85688672,0.00016602,2]
[365341444,1749609046336,-446.95656332,0.00016602,2]
[365341445,1749609046346,-470.0,0.00016602,2]
[365341446,1749609046355,-557.9407078,0.00016602,2]
[365341447,1749609046366,-484.76778333,0.00016602,2]
[365341448,1749609046376,-490.9788181,0.00016602,2]
[365341449,1749609046386,-482.39352307,0.00016602,2]
[365341450,1749609046397,-470.0,0.00016602,2]
[365341451,1749609046407,-490.0,0.00016602,2]
[365341452,1749609046418,-600.55683558,0.00016602,2]
[365341453,1749609046429,-481.03578424,0.00016602,2]
[365341454,1749609046439,-477.24361219,0.00016602,2]
[365341455,1749609046449,-470.0,0.00016602,2]
[365341456,1749609046460,-277.14627754,0.00016602,2]
[365341457,1749609046471,-601.74396822,0.00016602,2]
[365341458,1749609046482,-490.0,0.00016602,2]
[365341459,1749609046493,-485.35978469,0.00016602,2]
[365341460,1749609046503,-490.0,0.00016602,2]
[365341461,1749609046514,-470.0,0.00016602,2]
[365341462,1749609046524,-490.0,0.00016602,2]
[365341463,1749609046536,-490.0,0.00016602,2]
[365341464,1749609046546,-490.0,0.00016602,2]
[365341465,1749609046557,-470.0,0.00016602,2]
[365341466,1749609046568,-490.0,0.00016602,2]
[365341467,1749609046578,-470.0,0.00016602,2]
[365341468,1749609046591,-490.0,0.00016602,2]
[365341469,1749609046602,-536.76760718,0.00016602,2]
[365341470,1749609046613,-480.40672971,0.00016602,2]
[365341471,1749609046624,-560.72689007,0.00016602,2]
[365341472,1749609046635,-470.0,0.00016602,2]
[365341473,1749609046645,-520.02973362,0.00016602,2]
[365341474,1749609046655,-481.4644023,0.00016602,2]
[365341475,1749609046666,-477.39108074,0.00016602,2]
[365341476,1749609046676,-506.92216623,0.00016602,2]
[365341477,1749609046687,-490.0,0.00016602,2]
[365341478,1749609046698,-491.15410866,0.00016602,2]
[365341479,1749609046708,-487.6215676,0.00016602,2]
[365341480,1749609046720,-490.0,0.00016602,2]
[365341481,1749609046730,-499.15861595,0.00016602,2]
[365341482,1749609046741,-475.47312374,0.00016602,2]
[365341483,1749609046752,-611.77924433,0.00016602,2]
[365341484,1749609046764,-470.0,0.00016602,2]
[365341485,1749609046775,-486.34103895,0.00016602,2]
[365341486,1749609046786,-178.88623353,0.00016602,2]
[365341487,1749609046797,-514.338543,0.00016602,2]
[365341488,1749609046807,-564.86511722,0.00016602,2]
[365341489,1749609046818,-503.18952859,0.00016602,2]
[365341490,1749609046829,-572.51301136,0.00016602,2]
[365341491,1749609046840,-490.0,0.00016602,2]
[365341492,1749609046851,-490.0,0.00016602,2]
[365341493,1749609046862,-493.39137707,0.00016602,2]
[365341494,1749609046873,-496.04717764,0.00016602,2]
[365341495,1749609046885,-330.76736751,0.00016602,2]
[365341496,1749609046896,-524.46636971,0.00016602,2]
[365341497,1749609046907,-470.0,0.00016602,2]
[365341498,1749609046918,-477.19215562,0.00016602,2]
[365341499,1749609046929,-470.0,0.00016602,2]
[365341500,1749609046940,-551.38471594,0.00016602,2]
[365341501,1749609046950,-495.95069093,0.00016602,2]
[365341502,1749609046962,-359.87800771,0.00016602,2]
[365341503,1749609046973,-470.0,0.00016602,2]
[365341504,1749609046983,-497.03104402,0.00016602,2]
[365341505,1749609046994,-480.43224772,0.00016602,2]
[365341506,1749609047004,-490.0,0.00016602,2]
[365341507,1749609047016,-477.94156852,0.00016602,2]
[365341508,1749609047028,-490.0,0.00016602,2]
[365341509,1749609047039,-643.14,0.00016602,2]
[365341510,1749609047051,-249.22084239,0.00016602,2]
[365341511,1749609047061,-563.3472589,0.00016602,2]
[365341512,1749609047073,-565.17756033,0.00016602,2]
[365341513,1749609047084,-470.0,0.00016602,2]
[365341514,1749609047096,-470.0,0.00016602,2]
[365341515,1749609047111,-418.92651681,0.00016602,2]
[365341516,1749609047122,-552.26308143,0.00016602,2]
[365341517,1749609047134,-470.0,0.00016602,2]
[365341518,1749609047145,-470.0,0.00016602,2]
[365341519,1749609047156,-602.62097807,0.00016602,2]
[365341520,1749609047167,-510.89849488,0.00016602,2]
[365341521,1749609047178,-490.0,0.00016602,2]
[365341522,1749609047189,-490.0,0.00016602,2]
[365341523,1749609047200,-470.0,0.00016602,2]
[365341524,1749609047212,-490.0,0.00016602,2]
[365341525,1749609047223,-352.00690118,0.00016602,2]
[365341526,1749609047234,-201.80158548,0.00016602,2]
[365341527,1749609047246,-490.0,0.00016602,2]
[365341528,1749609047257,-490.0,0.00016602,2]
[365341529,1749609047269,-470.0,0.00016602,2]
[365341530,1749609047280,-534.27732657,0.00016602,2]
[365341531,1749609047290,-484.11342581,0.00016602,2]
[365341532,1749609047301,-490.0,0.00016602,2]
[365341533,1749609047312,-470.0,0.00016602,2]
[365341534,1749609047323,-533.9,0.00016602,2]
[365341535,1749609047334,-490.0,0.00016602,2]
[365341536,1749609047345,-490.0,0.00016602,2]
[365341537,1749609047356,-490.0,0.00016602,2]
[365341538,1749609047366,-432.55858138,0.00016602,2]
[365341539,1749609047377,-490.0,0.00016602,2]
[365341540,1749609047387,-490.0,0.00016602,2]
[365341541,1749609047398,-787.65,0.00016602,2]
[365341542,1749609047409,-490.0,0.00016602,2]
[365341543,1749609047420,-515.90331502,0.00016602,2]
[365341544,1749609047431,-490.0,0.00016602,2]
[365341545,1749609047442,-490.0,0.00016602,2]
[365341546,1749609047453,-446.98510022,0.00016602,2]
[365341547,1749609047464,-490.0,0.00016602,2]
[365341548,1749609047475,-490.0,0.00016602,2]
[365341549,1749609047485,-270.0,0.00016602,2]
[365341550,1749609047496,-552.0,0.00016602,2]
[365341551,1749609047507,-162.2401231,0.00016602,2]
[365341552,1749609047518,-490.0,0.00016602,2]
[365341553,1749609047528,-490.0,0.00016602,2]
[365341554,1749609047539,-490.0,0.00016602,2]
[365341555,1749609047550,-490.0,0.00016602,2]
[365341556,1749609047561,-490.0,0.00016602,2]
[365341557,1749609047571,-438.70633843,0.00016602,2]
[365341558,1749609047582,-439.43606152,0.00016602,2]
[365341559,1749609047593,-470.0,0.00016602,2]
[365341560,1749609047603,-490.0,0.00016602,2]
[365341561,1749609047614,-490.0,0.00016602,2]
[365341562,1749609047625,-470.0,0.00016602,2]
[365341563,1749609047635,-490.0,0.00016602,2]
[365341564,1749609047646,-490.0,0.00016602,2]
[365341565,1749609047657,-480.03976638,0.00016602,2]
[365341566,1749609047668,-490.0,0.00016602,2]
[365341567,1749609047679,-490.0,0.00016602,2]
[365341568,1749609047690,-449.68565488,0.00016602,2]
[365341569,1749609047701,-222.14796933,0.00016602,2]
[365341570,1749609047711,-351.69057431,0.00016602,2]
[365341571,1749609047723,-552.92,0.00016602,2]
[365341572,1749609047734,-490.0,0.00016602,2]
[365341573,1749609047745,-470.0,0.00016602,2]
[365341574,1749609047755,-545.96,0.00016602,2]
[365341575,1749609047766,-490.0,0.00016602,2]
[365341576,1749609047777,-490.0,0.00016602,2]
[365341577,1749609047787,-490.0,0.00016602,2]
[365341578,1749609047799,-490.0,0.00016602,2]
[365341579,1749609047810,-490.0,0.00016602,2]
[365341580,1749609047820,-490.0,0.00016602,2]
[365341581,1749609047831,-490.0,0.00016602,2]
[365341582,1749609047842,-409.62389737,0.00016602,2]
[365341583,1749609047852,-470.0,0.00016602,2]
[365341584,1749609047862,-236.20572076,0.00016602,2]
[365341585,1749609047872,-490.0,0.00016602,2]
[365341586,1749609047883,-490.0,0.00016602,2]
[365341587,1749609048130,-460.0,0.00016602,2]
[365341588,1749609048175,-490.0,0.00016602,2]
[365341589,1749609048190,-470.0,0.00016602,2]
[365341590,1749609048200,-490.0,0.00016602,2]
[365341591,1749609048211,-559.93745221,0.00016602,2]
[365341592,1749609048221,-490.0,0.00016767,2]
[365341593,1749609048231,-528.76,0.00016767,2]
[365341594,1749609048243,-490.0,0.00016767,2]
[365341595,1749609048253,-268.62,0.00016767,2]
[365341596,1749609048263,-443.46,0.00016767,2]
[365341597,1749609048273,-490.0,0.00016767,2]
[365341598,1749609048283,-374.7,0.00016767,2]
[365341599,1749609048293,-629.85122872,0.00016767,2]
[365341600,1749609048303,-540.10766968,0.00016767,2]
[365341601,1749609048313,-462.75481175,0.00016767,2]
[365341602,1749609048322,-460.0,0.00016767,2]
[365341603,1749609048332,-474.61805518,0.00016767,2]
[365341604,1749609048342,-490.0,0.00016767,2]
[365341605,1749609048352,-636.78,0.00016767,2]
[365341606,1749609048361,-580.28,0.00016767,2]
[365341607,1749609048371,-583.60013731,0.00016767,2]
[365341608,1749609048382,-186.62,0.00016767,2]
[365341609,1749609048393,-490.0,0.00016767,2]
[365341610,1749609048403,-209.52818155,0.00016767,2]
[365341611,1749609048413,-490.0,0.00016767,2]
[365341612,1749609048423,-333.78563099,0.00016767,2]
[365341613,1749609048434,-229.78,0.00016767,2]
[365341614,1749609048444,-487.38385179,0.00016767,2]
[365341615,1749609048454,-591.50222425,0.00016767,2]
[365341616,1749609048464,-379.86,0.00016767,2]
[365341617,1749609048473,-154.83618311,0.00016767,2]
[365341618,1749609048484,-460.0,0.00016767,2]